Cogmind - Beta 12 @@@ ROGUE MODE // 2024.02.25 @ 19:50:44 Player: Louistron Result: Self-destructed Performance ------------- Evolutions (1) 500 Regions Visited (2) 400 Robots Destroyed (46) 230 Value Destroyed (580) 580 Prototype IDs (0) 0 Alien Tech Used (0) 0 Bonus (23) 23 TOTAL SCORE: 1733 Bonus ------- High Alert Combat Kills 23 Cogmind --------- Core Integrity 385/400 Matter 21/300 Energy 92/265 System Corruption 1% Temperature Cool (0) Movement Treading (160) Location -9/Materials Parts ------- > --- POWER (1) -------- Improved Ion Engine > --- PROPULSION (3) --- Light Treads Light Treads Light Treads > --- UTILITY (3) ------ Large Storage Unit Hardened Light Armor Plating Hardened Light Armor Plating > --- WEAPON (2) ------- Assault Rifle Rocket Launcher > --- INVENTORY (15) --- Light Treads Heat Sink Huge Storage Unit Medium Armor Plating Medium Armor Plating EM Pulse Gun Medium Laser Rocket Launcher Heavy Hammer Peak State ------------ > --- POWER ------------ Improved Ion Engine > --- PROPULSION ------- Light Treads Light Treads Light Treads > --- UTILITY ---------- Large Storage Unit Hardened Light Armor Plating Hardened Light Armor Plating > --- WEAPON ----------- Assault Rifle Rocket Launcher > --- INVENTORY -------- Improved Ion Engine Light Treads Huge Storage Unit Medium Armor Plating EM Pulse Gun Medium Laser Heavy Hammer [Rating: 14] Favorites ----------- Power Improved Ion Engine Engine Improved Ion Engine Propulsion Light Treads Treads Light Treads Utility Hardened Light Armor Plating Storage Small Storage Unit Protection Hardened Light Armor Plating Weapon Assault Rifle Energy Gun Medium Laser Ballistic Gun Assault Rifle Launcher Rocket Launcher Impact Weapon Heavy Hammer Build | -11 -10 -9 ------- Run | Jun Mat Mat Slots Evolved 2 | . . 2 Power . | . . . Propulsion 1 | . . 1 Utility 1 | . . 1 Weapon . | . . . Parts Attached 23 | 7 4 12 Power 3 | 1 1 1 Engine 3 | 1 1 1 Core . | . . . Reactor . | . . . Propulsion 4 | 2 . 2 Treads 4 | 2 . 2 Leg . | . . . Wheel . | . . . Hover . | . . . Flight . | . . . Utility 8 | 1 3 4 Device . | . . . Storage 6 | 1 2 3 Processor . | . . . Hackware . | . . . Protection 2 | . 1 1 Artifact . | . . . Weapon 8 | 3 . 5 Energy Gun 2 | 1 . 1 Energy Cannon . | . . . Ballistic Gun 3 | 2 . 1 Ballistic Cannon . | . . . Launcher 2 | . . 2 Special Weapon . | . . . Impact Weapon 1 | . . 1 Slashing Weapon . | . . . Piercing Weapon . | . . . Special Melee Weapon . | . . . Unidentified Prototypes . | . . . Parts Lost 1 | . . 1 Power 1 | . . 1 Propulsion . | . . . Utility . | . . . Weapon . | . . . Highest Loss Streak 1 | . . 1 To Critical Strikes . | . . . Average Slot Usage (%) 97 | . 99 95 Engine 12 | . 14 10 Treads 30 | . 28 32 Storage 12 | . 14 11 Protection 17 | . 13 19 Ballistic Gun 17 | . 28 10 Launcher 4 | . . 7 Naked Turns . | . . . Heaviest Build 92 | 12 92 43 Greatest Support 60 | 40 40 60 Greatest Overweight (x) 2 | . 2 . Average Overweight (x) . | . . . Largest Inventory Capacity 25 | 8 25 25 Average Capacity 11 | 7 8 13 Most Carried 11 | 3 8 11 Average Carried 6 | 1 5 8 Final Capacity 15 | 8 8 15 Final Carried 9 | 2 8 9 Class Distribution -------------------- 100% | Mutant Dominant Class ---------------- Mutant | -10/Materials Mutant | -9/Materials Resources | -11 -10 -9 ----------- Run | Jun Mat Mat Matter Collected 668 | 294 220 154 Remotely . | . . . Salvage Created 888 | 91 378 419 Parts 82 | 2 37 43 Haulers Intercepted 3 | . 1 2 Recyclers Shooed . | . . . Parts Field Recycled . | . . . Retrieved Matter . | . . . Parts Self-Destructed . | . . . Prevented . | . . . Kills | -11 -10 -9 ------- Run | Jun Mat Mat Combat Hostiles Destroyed 27 | . 8 19 Guns 12 | . 8 4 AOE 15 | . . 15 Classes Destroyed 9 | 1 6 2 Worker 8 | . 4 4 Builder 4 | . 1 3 Tunneler 1 | . 1 . Hauler 3 | . 1 2 Recycler 2 | 1 1 . Watcher 1 | . 1 . Swarmer 20 | . 8 12 Grunt 4 | . . 4 Sentry 3 | . . 3 Best Kill Streak 15 | 1 8 15 Combat Bots Only 12 | . 6 12 Max Kills in Single Turn 6 | 1 2 6 Gunslinging . | . . . Exploded 4 | . . 4 Melee . | . . . Uniques/NPCs Destroyed . | . . . Combat | -11 -10 -9 -------- Run | Jun Mat Mat Damage Taken 959 | . 328 631 Core 75 | . 60 15 Absorbed by Shields . | . . . Core Remaining (%) 88 | 100 76 . Volleys Fired 68 | 4 31 33 Largest 2 | 2 2 2 Hottest 70 | 40 40 70 Shots Fired 121 | 8 62 51 Gun 100 | 8 62 30 Cannon . | . . . Launcher 21 | . . 21 Special . | . . . Kinetic 93 | 8 62 23 Thermal 7 | . . 7 Explosive 21 | . . 21 Electromagnetic . | . . . Robot Hit Streak 9 | 5 9 8 Robot Miss Streak 5 | 2 4 5 Penetration Max . | . . . Secondary Targets 3 | . 2 1 Max Gunslinging Chain 1 | . 1 1 Shots Hit Robots 75 | 5 37 33 Core Hits 55 | 2 18 35 Critical Kills 1 | . 1 . Critical Parts Destroyed . | . . . Critical Strikes 1 | . 1 . Destroy 1 | . 1 . Melee Attacks . | . . . Impact . | . . . Slashing . | . . . Piercing . | . . . Sneak Attacks . | . . . Combat Hostiles . | . . . Follow-up Attacks . | . . . Damage Inflicted 2379 | 64 469 1846 Guns 772 | 64 469 239 Cannons . | . . . Explosions 1607 | . . 1607 Melee . | . . . Ramming . | . . . Kinetic 710 | 64 469 177 Thermal 62 | . . 62 Explosive 1607 | . . 1607 Electromagnetic . | . . . Impact . | . . . Slashing . | . . . Piercing . | . . . Highest Corruption 1 | . . 1 Average Corruption 1 | . . 1 Corruption Purged . | . . . Corruption Blocked . | . . . Effects 6 | . . 6 Message Errors 1 | . . 1 Matter Fused 2 | . . 2 Heat Flow Errors 1 | . . 1 Parts Rejected 1 | . . 1 Data Loss (minor) 1 | . . 1 Overload Shots . | . . . Overflow Damage 77 | . . 77 Projectiles . | . . . Explosions 77 | . . 77 Melee . | . . . Knockbacks . | . . . Impact . | . . . Kinetic . | . . . Secondary . | . . . Self-Inflicted Damage 38 | . . 38 Shots 1 | . . 1 Rammed . | . . . Targets Rammed . | . . . Kicked . | . . . Crushed . | . . . Highest Temperature 291 | . . 291 Average Temperature 73 | . . 73 Received Heat Transfer 165 | . . 165 Effects 2 | . . 2 Interference 2 | . . 2 Siege Activations . | . . . Robots Corrupted . | . . . Combat Hostiles . | . . . Parts Fried . | . . . Impact Corruptions . | . . . Robots Melted . | . . . Combat Hostiles . | . . . Parts Melted 1 | . . 1 Heat Transferred 185 | . . 185 Parts Sabotaged . | . . . Parts Stolen . | . . . Parts Stripped . | . . . Power Chain Reactions . | . . . Missiles Intercepted . | . . . Alert | -11 -10 -9 ------- Run | Jun Mat Mat Peak Influence 495 | 5 173 495 Initial 72 | . 3 72 Average 114 | 1 71 167 Maximum Alert Level 2 | . . 2 Low Security (%) 78 | 100 100 59 Level 1 16 | . . 32 Level 2 4 | . . 8 Level 3 . | . . . Level 4 . | . . . Level 5 . | . . . High Security . | . . . Max Security . | . . . Squads Dispatched 1 | . . 1 Investigation . | . . . Extermination . | . . . Reinforcement 1 | . . 1 Assault . | . . . Garrison . | . . . Intercept . | . . . Searches Triggered . | . . . Construction Impeded . | . . . Haulers Reinforced . | . . . Active Scanning Responses . | . . . Cargo Convoy Interrupts . | . . . Stealth | -11 -10 -9 --------- Run | Jun Mat Mat Distress Signals 2 | . . 2 Communications Jammed . | . . . Distress Signals . | . . . Times Spotted 38 | . 12 26 Peak Tracking Total 8 | . 6 8 Tactical Retreats . | . . . Traps | -11 -10 -9 ------- Run | Jun Mat Mat Traps Triggered . | . . . Indirectly . | . . . Trap Hack Attempts . | . . . Triggered . | . . . Disarmed . | . . . Reprogrammed . | . . . Reused . | . . . Traps Extracted . | . . . Installed . | . . . Triggered . | . . . Machines | -11 -10 -9 ---------- Run | Jun Mat Mat Machines Disabled 4 | . . 4 Max in Single Turn 1 | . . 1 Machines Repaired . | . . . Machines Sabotaged . | . . . Overloaded Fab Kills . | . . . Hacking | -11 -10 -9 --------- Run | Jun Mat Mat Machines Accessed 2 | . 1 1 Terminals 2 | . 1 1 Fabricators . | . . . Repair Stations . | . . . Recycling Units . | . . . Scanalyzers . | . . . Garrison Access . | . . . Total Hacks 7 | . 4 3 Successful 4 | . 2 2 Failed 3 | . 2 1 Catastrophic . | . . . Database Lockouts . | . . . Manual 4 | . 3 1 Terminals 7 | . 4 3 Fabricators . | . . . Repair Stations . | . . . Recycling Units . | . . . Scanalyzers . | . . . Garrison Access . | . . . Terminal Hacks 4 | . 2 2 Record 3 | . 2 1 Branch Access Points 1 | . . 1 Fabricator Hacks . | . . . Repair Station Hacks . | . . . Recycling Unit Hacks . | . . . Scanalyzer . | . . . Garrison Access Hacks . | . . . Unauthorized Hacks . | . . . Terminals . | . . . Fabricators . | . . . Repair Stations . | . . . Recycling Units . | . . . Scanalyzers . | . . . Garrison Access . | . . . Data Cores Recovered . | . . . Used . | . . . Hacking Detections 2 | . 1 1 Full Trace Events 1 | . . 1 Feedback Events 1 | . . 1 Corruption 1 | . . 1 Feedback Blocked . | . . . Robot Schematics Acquired . | . . . Robots Built . | . . . Authchips . | . . . Time . | . . . Total Robot Build Rating . | . . . Part Schematics Acquired . | . . . Parts Built . | . . . Authchips . | . . . Time . | . . . Total Part Build Rating . | . . . Parts Repaired . | . . . Time . | . . . Parts Recycled . | . . . Recycled Matter . | . . . Retrieved Matter . | . . . Retrieved Components . | . . . Parts Scanalyzed . | . . . Part Schematics Acquired . | . . . Parts Damaged . | . . . Bothacking | -11 -10 -9 ------------ Run | Jun Mat Mat Used RIF Installer . | . . . Robots Hacked . | . . . Non-combat . | . . . Combat . | . . . Robot Hacks Applied . | . . . Relay Couplers Released . | . . . Fabnet Peak Effective % . | . . . Robots Rewired . | . . . Allies Hacked . | . . . Hacks Repelled . | . . . Allies | -11 -10 -9 -------- Run | Jun Mat Mat Total Allies . | . . . Largest Group . | . . . Highest-Rated Group . | . . . Highest-Rated Ally . | . . . Total Orders . | . . . Ally Attacks . | . . . Total Damage . | . . . Kills . | . . . Allies Corrupted . | . . . Allies Melted . | . . . Intel | -11 -10 -9 ------- Run | Jun Mat Mat Robot Analysis Total . | . . . Derelict Logs Recovered . | . . . Drone Launches . | . . . Drone Recoveries . | . . . Exploration | -11 -10 -9 ------------- Run | Jun Mat Mat Turns Passed 1643 | 165 619 859 Spaces Moved 715 | 92 305 318 Core 11 | 11 . . Treads 704 | 81 305 318 Legs . | . . . Wheels . | . . . Hover . | . . . Flight . | . . . Fastest Speed 50 | 50 160 160 Average Speed 158 | 146 161 160 Slowest Speed 320 | 160 320 160 Overloaded Moves . | . . . Propulsion Burnouts . | . . . Robots Hopped . | . . . Cave-ins Triggered . | . . . Exploration Rate (%) 29 | 6 54 28 Regions Visited 2 Branch Regions . Pre-discovered Areas . | . . . Known Exits Taken . | . . . Unknown Exits Taken 2 | 1 1 . Scrap Searched . | . . . Spaces Dug . | . . . Terrain Destroyed 93 | . . 93 Melee . | . . . Projectile . | . . . AOE 93 | . . 93 Terrain Rammed . | . . . Walls Destroyed . | . . . Machines Disabled . | . . . Actions | -11 -10 -9 --------- Run | Jun Mat Mat Total 1111 | 115 374 622 Wait 264 | 4 21 239 Move 713 | 91 304 318 Hop . | . . . Pick Up 27 | 8 10 9 Fast Attach . | . . . Attach 23 | 7 4 12 Detach 9 | 1 1 7 Swap . | . . . Drop 7 | . 3 4 Fire 68 | 4 31 33 Melee . | . . . Ram . | . . . Kick . | . . . Crush . | . . . Escape Stasis . | . . . Rewire . | . . . Trap . | . . . Miscellaneous . | . . . Route ------- -11/Junkyard -10/Materials (discovered 2 exits: *Mat x2) -9/Materials (discovered 2 exits: [*Mat] / Min) History --------- Turn | Location | Event 8 | -11/Junkyard | Discovered new exit (range 15) 166 | -11/Junkyard | Entered Materials 302 | -10/Materials | Build established: Mutant 441 | -10/Materials | Discovered new exit (range 8) 755 | -10/Materials | Discovered new exit (range 10) 785 | -10/Materials | Entered another Materials area 785 | -9/Materials | Evolved 2 slots: Propulsion x1, Utility x1 826 | -9/Materials | Identified exit to Mines 1538 | -9/Materials | Destroyed 12 combat bots 1585 | -9/Materials | Discovered new exit (range 12) 1644 | -9/Materials | Self-destructed Last Messages --------------- 01630_ K-01 Serf collects debris. 01632_ U-05 Engineer lays Concrete. 01634_ K-01 Serf collects debris. 01634_ U-05 Engineer lays Concrete. 01635_ K-01 Serf collects debris. 01635_ U-05 Engineer lays Concrete. 01636_ Y-45 Defender destroyed. 01637_ U-05 Engineer lays Concrete. 01638_ The unstable cave ceiling collapses. 01638_ K-01 Serf collects debris. 01638_ U-05 Engineer lays Concrete. 01639_ K-01 Serf collects debris. 01639_ U-05 Engineer lays Concrete. 01639_ M-13 Machinist repairs K-01 Serf. 01641_ K-01 Serf collects debris. 01641_ U-05 Engineer lays Concrete. 01641_ Acquired 13 matter. 01641_ M-13 Machinist fits Backup Propulsion I on K-01 Serf. 01641_ Critical hit (Burn: +37). 01642_ U-05 Engineer lays Concrete. Map ----- +----------------------------------------------------+ | ?????????????????????????????????????????????????? | | ?????????????????????????????????????????????????? | | ?????????????????????????????????????????????????? | | ?????????????????????????????????????????????????? | | ?????????????????????????????????????????????????? | | ?????????????????????????????????????????????????? | | ?????????????????????????????????????????????????? | | ????????????????????????????????????????######???# | | ????????????????????????????????????????# ???# | | ????????????????????????????????????????# ???# | | ?????????????????????????????? ???????# """# | | ?????????????????????????????? #??????# """# | | ?????????????????????????????? #??????# # | | ??????????????????############ #####??# """# | | ??????????????????# #??# """# | | ??????????????????# #??# ] """# | | ??????????????????# #??# # | | ??????????????????# #??######+### | | ??????????????????# #????# | | ??????????????????# #????# | | ??????????????????# #????# | | ???????????######## ! ###### | | ??????????? *![* | | ?????????? =*m%[ | | ?????????? k%=!=* """"""" | | ??????????## # **@! """"""" | | ??????????# ! %* * ! """"""" | | ??????????# [ w """""" | | ??????????? """"""" | | ??????????? ! "" = | | ???????????# Y "" [ | | ????????????+########## #[ #### | | ???????????????????##### # u #??? | | ?????????????????# # #??? | | ?????????????????# + = #??? | | ?????????????????# # k#### ###########??? | | ?????????????????###+##### # # #????????????? | | ?????????????????????????# k ????????????? | | ???????????????????????? # ???????????? | | ?????????????????????? # """ """ ??????????? | | ???????????????????? # """ """ ??????????? | | ??????????????????? #### + """ """ #?????????? | | ??????????????????? ????# # ???????????? | | ??????????????????? ?????# < # ????????????? | | ?????????????????????????# # ???????????? | | ?????????????????????????#######?##?##???????????? | | ?????????????????????????????????????????????????? | | ?????????????????????????????????????????????????? | | ?????????????????????????????????????????????????? | | ?????????????????????????????????????????????????? | +----------------------------------------------------+ Best States ------------- Heat Dissipation 28 Energy Generation 12 Energy Capacity 265 Matter Stores 300 Matter Capacity 300 Sight Range 16 Terrain Scan Density 10 Armor Coverage 300 Evasion (%) 50 Recoil Reduction 3 Item Schematics ----------------- None Robot Schematics ------------------ None Fabricated ------------ Nothing Alien Tech Used ----------------- None Achievements -------------- None Challenges ------------ None Game ------ Seed ThermalHeatCompressor Manual? 0 Play Time 00:23:34 Cumulative 29.2 hours Start 2024.02.25 @ 19:18:17 End 2024.02.25 @ 19:50:44 Sessions 2 Manual Loads 0 Difficulty Rogue Special Mode None Game No. 40 Rogue 40 Adventurer 0 Explorer 0 Win Type - Total 0 Types 0/0/0/0/0/0/0/0/0 Lore% 8 Gallery% 17 Achievement% 16 Wizard Run 0 Options --------- ASCII 0 Keyboard 1 Movement Vi Keybinds 0 Fullscreen 1 Font 18/SmallcapsGlow Map View 76x50 Tactical HUD 1 Map Filters NONE Filters NONE Steam 1 RUN: 1c180561-6b61-4e6f-ba01-8c26d02f0b41